Cogmind - Beta 10.2 @@@ ROGUE MODE // 2021.01.12 @ 22:40:19 Player: Demise Result: Destroyed by DAS Turret with DAS Cannon Performance ------------- Evolutions (1) 500 Regions Visited (5) 1000 Robots Destroyed (56) 280 Value Destroyed (1172) 1172 Prototype IDs (25) 500 Alien Tech Used (0) 0 Bonus (334) 334 TOTAL SCORE: 3786 Bonus ------- Follower Combat Kills 42 Aligned with FarCom 300 Friendly Fire -8 Cogmind --------- Core Integrity 0/400 Matter 124/300 Energy 264/265 System Corruption 1% Temperature Cool (0) Movement Walking (90) Location -9/Exiles Parts ------- > --- POWER (1) -------- Improved Ion Engine > --- PROPULSION (2) --- Potential Leg Potential Leg > --- UTILITY (4) ------ Large Storage Unit Advanced Targeting Computer Armor Integrity Analyzer > --- WEAPON (2) ------- Light Assault Rifle Mini Grenade Launcher > --- INVENTORY (10) --- Advanced Treads Advanced Treads Advanced Treads Advanced Treads Large Storage Unit High-capacity Matter Pod (200) Gravity Neutralizing Apparatus Experimental Targeting Computer Light Assault Rifle Light Assault Rifle Peak State ------------ > --- POWER ------------ Improved Ion Engine > --- PROPULSION ------- Potential Leg Potential Leg > --- UTILITY ---------- Large Storage Unit Large Storage Unit Advanced Targeting Computer Armor Integrity Analyzer > --- WEAPON ----------- Heavy Assault Rifle Heavy Assault Rifle > --- INVENTORY -------- Improved Ion Engine Reinforced Deuterium Engine Fission Core Light Fission Core Advanced Treads Advanced Treads Advanced Treads Advanced Treads Large Storage Unit Medium Armor Plating Medium Armor Plating Medium Armor Plating Light Assault Rifle Light Assault Rifle Light Assault Rifle Mini Grenade Launcher [Rating: 37] Favorites ----------- Power Improved Ion Engine Engine Improved Ion Engine Power Core Light Nuclear Core Propulsion Light Treads Treads Light Treads Leg Potential Leg Utility Large Storage Unit Device Gravity Neutralizing Apparatus Storage Large Storage Unit Processor Advanced Targeting Computer Protection Medium Armor Plating Weapon Light Assault Rifle Ballistic Gun Light Assault Rifle Launcher Mini Grenade Launcher Special Weapon Mining Laser Build | -11 -10 -10 -9 -9 -9 ------- Run | Scr Mat Min Mat Min Exi Slots Evolved 2 | . . . 2 . . Power . | . . . . . . Propulsion . | . . . . . . Utility 2 | . . . 2 . . Weapon . | . . . . . . Parts Attached 89 | 6 21 12 36 . 14 Power 14 | 1 2 3 7 . 1 Engine 9 | 1 1 2 4 . 1 Core 5 | . 1 1 3 . . Reactor . | . . . . . . Propulsion 25 | 2 6 2 13 . 2 Treads 23 | 2 6 2 13 . . Leg 2 | . . . . . 2 Wheel . | . . . . . . Hover . | . . . . . . Flight . | . . . . . . Utility 22 | 1 10 . 5 . 6 Device 1 | . . . . . 1 Storage 11 | 1 7 . 3 . . Processor 5 | . 3 . 1 . 1 Hackware . | . . . . . . Protection 5 | . . . 1 . 4 Artifact . | . . . . . . Weapon 28 | 2 3 7 11 . 5 Energy Gun . | . . . . . . Energy Cannon . | . . . . . . Ballistic Gun 22 | 2 2 5 10 . 3 Ballistic Cannon . | . . . . . . Launcher 5 | . . 2 1 . 2 Special Weapon 1 | . 1 . . . . Impact Weapon . | . . . . . . Slashing Weapon . | . . . . . . Piercing Weapon . | . . . . . . Special Melee Weapon . | . . . . . . Unidentified Prototypes 1 | . . . . . 1 Parts Lost 9 | . 2 . 1 . 6 Power 1 | . . . . . 1 Propulsion . | . . . . . . Utility 4 | . 1 . . . 3 Weapon 4 | . 1 . 1 . 2 Highest Loss Streak 4 | . 1 . 1 . 4 Average Slot Usage (%) 99 | . 99 99 98 100 99 Engine 9 | . 6 12 6 11 10 Core 2 | . 7 . 3 . . Treads 21 | . 28 27 22 22 11 Leg 2 | . . . . . 10 Storage 27 | . 22 28 31 33 26 Processor 9 | . 4 . 10 11 16 Ballistic Gun 22 | . 26 27 21 22 18 Launcher 1 | . . . . . 3 Naked Turns . | . . . . . . Heaviest Build 61 | 11 39 39 61 61 61 Greatest Support 60 | 40 40 40 45 44 60 Greatest Overweight (x) 1 | . . 1 1 1 1 Average Overweight (x) . | . . . . 1 . Largest Inventory Capacity 22 | 6 16 16 22 22 22 Average Capacity 17 | 5 11 16 20 22 18 Most Carried 22 | 4 16 16 22 22 22 Average Carried 16 | 2 10 15 20 21 15 Final Capacity 22 | 6 16 16 22 22 10 Final Carried 22 | 3 16 16 22 22 10 Class Distribution -------------------- 42% | Mutant 37% | Hauler-Mutant 11% | Scavenger-Mutant 8% | Commander-Mutant Dominant Class ---------------- Mutant | -10/Materials Mutant | -10/Mines Scavenger-Mutant | -9/Materials Hauler-Mutant | -9/Mines Hauler-Mutant | -9/Exiles Resources | -11 -10 -10 -9 -9 -9 ----------- Run | Scr Mat Min Mat Min Exi Matter Collected 2415 | 254 344 579 566 75 597 Remotely . | . . . . . . Salvage Created 2124 | 116 459 439 851 151 108 Parts 133 | 10 28 16 60 15 4 Haulers Intercepted 3 | . 2 . 1 . . Recyclers Shooed 6 | . 1 5 . . . Parts Field Recycled . | . . . . . . Retrieved Matter . | . . . . . . Parts Self-Destructed . | . . . . . . Prevented . | . . . . . . Kills | -11 -10 -10 -9 -9 -9 ------- Run | Scr Mat Min Mat Min Exi Combat Hostiles Destroyed 42 | . 8 10 15 6 3 Guns 39 | . 8 9 15 6 1 AOE 3 | . . 1 . . 2 Classes Destroyed 11 | 2 6 1 2 . . Worker 2 | . 1 . 1 . . Builder 1 | . 1 . . . . Tunneler 5 | 3 . 1 . 1 . Hauler 3 | . 2 . 1 . . Recycler 5 | 1 . 4 . . . Operator 1 | . . . 1 . . Watcher 5 | . 2 . 3 . . Swarmer 10 | . 2 3 . 5 . Grunt 17 | . 6 1 9 1 . Sentry 6 | . . . 6 . . Assembled 8 | . . 6 . . 2 Best Kill Streak 4 | 3 3 4 3 3 2 Combat Bots Only 3 | . 2 3 2 3 2 Max Kills in Single Turn 2 | 1 1 1 1 1 2 Gunslinging . | . . . . . . Exploded 2 | . . 1 . . 2 Melee . | . . . . . . Uniques/NPCs Destroyed 1 | . . . . . 1 8R-AWN (-9/Exiles) Combat | -11 -10 -10 -9 -9 -9 -------- Run | Scr Mat Min Mat Min Exi Damage Taken 3156 | . 506 369 758 89 1434 Core 516 | . 61 31 110 9 305 Absorbed by Shields . | . . . . . . Core Remaining (%) 81 | 100 . 63 . . . Volleys Fired 277 | 10 72 49 67 11 68 Largest 2 | 2 2 2 2 2 2 Hottest 100 | 40 100 53 46 46 50 Shots Fired 522 | 20 135 96 132 22 117 Gun 497 | 20 132 93 132 22 98 Cannon . | . . . . . . Launcher 22 | . . 3 . . 19 Special 3 | . 3 . . . . Kinetic 497 | 20 132 93 132 22 98 Thermal 3 | . 3 . . . . Explosive 22 | . . 3 . . 19 Electromagnetic . | . . . . . . Robot Hit Streak 24 | 7 22 8 24 12 23 Robot Miss Streak 5 | 2 5 4 2 3 2 Penetration Max . | . . . . . . Secondary Targets 6 | . 1 3 . 2 . Max Gunslinging Chain 1 | . 1 1 . 1 . Shots Hit Robots 358 | 15 90 54 105 14 80 Core Hits 156 | 7 33 33 44 9 30 Critical Hits 4 | . 1 . 3 . . Critical Kills 1 | . 1 . . . . Critical Parts Destroyed 2 | . . . 2 . . Melee Attacks . | . . . . . . Impact . | . . . . . . Slashing . | . . . . . . Piercing . | . . . . . . Sneak Attacks . | . . . . . . Combat Hostiles . | . . . . . . Follow-up Attacks . | . . . . . . Damage Inflicted 4069 | 117 712 498 1144 223 1375 Guns 3534 | 117 705 451 1144 223 894 Cannons . | . . . . . . Explosions 528 | . . 47 . . 481 Melee . | . . . . . . Ramming 7 | . 7 . . . . Kinetic 3534 | 117 705 451 1144 223 894 Thermal . | . . . . . . Explosive 528 | . . 47 . . 481 Electromagnetic . | . . . . . . Impact . | . . . . . . Slashing . | . . . . . . Piercing . | . . . . . . Highest Corruption 4 | . 4 4 1 1 1 Average Corruption 2 | . 3 4 1 1 1 Corruption Purged . | . . . . . . Effects 84 | . 21 38 10 5 10 Message Errors 18 | . 1 6 5 3 3 Matter Fused 16 | . 8 8 . . . Heat Flow Errors 7 | . 3 4 . . . Energy Discharges 11 | . 3 7 . 1 . Parts Rejected 3 | . 1 2 . . . Data Loss (minor) 12 | . 1 4 1 1 5 Targeting Errors 13 | . 2 6 3 . 2 Weapon Failures 4 | . 2 1 1 . . Overload Shots . | . . . . . . Overflow Damage . | . . . . . . Projectiles . | . . . . . . Explosions . | . . . . . . Melee . | . . . . . . Knockbacks . | . . . . . . Impact . | . . . . . . Kinetic . | . . . . . . Secondary . | . . . . . . Self-Inflicted Damage 72 | . . 44 . . 28 Shots 2 | . . 1 . . 1 Rammed 2 | . 2 . . . . Targets Rammed 2 | . 2 . . . . Kicked . | . . . . . . Crushed . | . . . . . . Highest Temperature 251 | . 251 194 20 . 8 Average Temperature 30 | . 30 79 6 . 3 Received Heat Transfer 622 | . 180 133 309 . . Siege Activations . | . . . . . . Robots Corrupted . | . . . . . . Combat Hostiles . | . . . . . . Parts Fried . | . . . . . . Impact Corruptions . | . . . . . . Robots Melted . | . . . . . . Combat Hostiles . | . . . . . . Parts Melted . | . . . . . . Heat Transferred . | . . . . . . Parts Sabotaged . | . . . . . . Parts Stolen . | . . . . . . Parts Stripped . | . . . . . . Power Chain Reactions . | . . . . . . Missiles Intercepted . | . . . . . . Alert | -11 -10 -10 -9 -9 -9 ------- Run | Scr Mat Min Mat Min Exi Peak Influence 219 | 20 199 96 188 219 . Initial 34 | . 13 . . 34 . Average 66 | 7 54 27 95 87 . Maximum Alert Level 1 | . . . . 1 . Low Security (%) 99 | 100 100 100 100 98 . Level 1 . | . . . . 1 . Level 2 . | . . . . . . Level 3 . | . . . . . . Level 4 . | . . . . . . Level 5 . | . . . . . . High Security . | . . . . . . Max Security . | . . . . . . Squads Dispatched 6 | . 3 . 3 . . Investigation 2 | . . . 2 . . Extermination . | . . . . . . Reinforcement 4 | . 3 . 1 . . Assault . | . . . . . . Garrison . | . . . . . . Intercept . | . . . . . . Construction Impeded . | . . . . . . Haulers Reinforced . | . . . . . . Stealth | -11 -10 -10 -9 -9 -9 --------- Run | Scr Mat Min Mat Min Exi Distress Signals 6 | . 2 . 4 . . Communications Jammed . | . . . . . . Distress Signals . | . . . . . . Times Spotted 99 | . 22 15 26 15 21 Peak Tracking Total 9 | . 4 3 4 4 9 Tactical Retreats 9 | . 2 . 2 2 3 Traps | -11 -10 -10 -9 -9 -9 ------- Run | Scr Mat Min Mat Min Exi Traps Triggered 3 | . 2 . 1 . . Indirectly . | . . . . . . Trap Hack Attempts . | . . . . . . Triggered . | . . . . . . Disarmed 3 | . . . 3 . . Reprogrammed . | . . . . . . Reused 3 | . . . . . 3 Traps Extracted . | . . . . . . Installed 4 | . . . . . 4 Triggered . | . . . . . . Exploded 2 | . . . . . 2 Machines | -11 -10 -10 -9 -9 -9 ---------- Run | Scr Mat Min Mat Min Exi Machines Disabled 4 | . . 1 . . 3 Max in Single Turn 1 | . . 1 . . 1 Machines Sabotaged . | . . . . . . Garrisons Compromised . | . . . . . . Overloaded Fab Kills . | . . . . . . Fab Network Shutdowns . | . . . . . . Hacking | -11 -10 -10 -9 -9 -9 --------- Run | Scr Mat Min Mat Min Exi Machines Accessed 22 | . 7 1 11 1 2 Terminals 15 | . 5 1 9 . . Fabricators . | . . . . . . Repair Stations 1 | . . . 1 . . Recycling Units 2 | . 2 . . . . Scanalyzers 1 | . . . 1 . . Garrison Access . | . . . . . . Total Hacks 69 | . 21 2 43 1 2 Successful 38 | . 11 1 23 1 2 Failed 30 | . 10 1 19 . . Catastrophic 2 | . . . 2 . . Database Lockouts 1 | . . . 1 . . Manual 56 | . 18 2 35 . 1 Terminals 53 | . 16 2 35 . . Fabricators . | . . . . . . Repair Stations 6 | . . . 6 . . Recycling Units 5 | . 5 . . . . Scanalyzers 2 | . . . 2 . . Garrison Access . | . . . . . . Terminal Hacks 14 | . 2 1 8 1 2 Record 1 | . . . . . 1 Part Schematic 2 | . . . 2 . . Robot Analysis 3 | . 1 1 1 . . Open Door 1 | . . . . 1 . Level Access Points 1 | . . . 1 . . Branch Access Points 1 | . . . 1 . . Terminal Index 2 | . 1 . 1 . . Scanalyzer Index 1 | . . . 1 . . Disarm Traps 1 | . . . 1 . . EX-Prototype ID Bank 1 | . . . . . 1 Fabricator Hacks . | . . . . . . Repair Station Hacks 6 | . . . 6 . . Scan Component 3 | . . . 3 . . Repair 3 | . . . 3 . . Recycling Unit Hacks 2 | . 2 . . . . Retrieve Components 2 | . 2 . . . . Scanalyzer 2 | . . . 2 . . Insert Component 1 | . . . 1 . . Analyze 1 | . . . 1 . . Garrison Access Hacks . | . . . . . . Unauthorized Hacks 14 | . 7 . 7 . . Terminals 12 | . 5 . 7 . . Assimilate 2 | . . . 2 . . Botnet 8 | . 4 . 4 . . Operators 2 | . 1 . 1 . . Fabricators . | . . . . . . Repair Stations . | . . . . . . Recycling Units 2 | . 2 . . . . Reject 1 | . 1 . . . . Mask 1 | . 1 . . . . Scanalyzers . | . . . . . . Garrison Access . | . . . . . . Data Cores Recovered . | . . . . . . Used . | . . . . . . Hacking Detections 16 | . 6 1 9 . . Full Trace Events 2 | . . . 2 . . Feedback Events . | . . . . . . Feedback Blocked . | . . . . . . Robot Schematics Acquired . | . . . . . . Robots Built . | . . . . . . Matter . | . . . . . . Time . | . . . . . . Total Robot Build Rating . | . . . . . . Part Schematics Acquired 3 | . . . 3 . . Parts Built . | . . . . . . Matter . | . . . . . . Time . | . . . . . . Total Part Build Rating . | . . . . . . Parts Repaired 3 | . . . 3 . . Time 96 | . . . 96 . . Parts Recycled . | . . . . . . Recycled Matter . | . . . . . . Retrieved Matter . | . . . . . . Retrieved Components 11 | . 11 . . . . Parts Scanalyzed 1 | . . . 1 . . Part Schematics Acquired 1 | . . . 1 . . Parts Damaged . | . . . . . . Bothacking | -11 -10 -10 -9 -9 -9 ------------ Run | Scr Mat Min Mat Min Exi Used RIF Installer . | . . . . . . Robots Hacked . | . . . . . . Non-combat . | . . . . . . Combat . | . . . . . . Robot Hacks Applied . | . . . . . . Relay Couplers Released . | . . . . . . Robots Rewired . | . . . . . . Allies Hacked . | . . . . . . Hacks Repelled . | . . . . . . Allies | -11 -10 -10 -9 -9 -9 -------- Run | Scr Mat Min Mat Min Exi Total Allies 8 | . . . 1 7 . Largest Group 7 | . . . 1 7 7 Highest-Rated Group 126 | . . . 10 126 126 Highest-Rated Ally 31 | . . . 10 31 31 Total Orders 6 | . . . . 2 4 STAY 5 | . . . . 1 4 FOLLOW 1 | . . . . 1 . Ally Attacks 17 | . . . . 9 8 Total Damage 148 | . . . . 121 27 Kills 7 | . . . . 6 1 Allies Corrupted . | . . . . . . Allies Melted . | . . . . . . Intel | -11 -10 -10 -9 -9 -9 ------- Run | Scr Mat Min Mat Min Exi Robot Analysis Total 3 | . 1 1 1 . . Derelict Logs Recovered 3 | . . 1 . 2 . Drone Launches . | . . . . . . Drone Recoveries . | . . . . . . Exploration | -11 -10 -10 -9 -9 -9 ------------- Run | Scr Mat Min Mat Min Exi Turns Passed 7320 | 77 1515 1242 1658 1005 1823 Spaces Moved 3551 | 34 773 670 734 567 773 Core 14 | 14 . . . . . Treads 3329 | 20 773 670 734 567 565 Legs 208 | . . . . . 208 Wheels . | . . . . . . Hover . | . . . . . . Flight . | . . . . . . Fastest Speed 50 | 50 160 160 160 165 90 Average Speed 160 | 114 160 160 176 165 144 Slowest Speed 180 | 160 160 180 180 165 165 Overloaded Moves . | . . . . . . Propulsion Burnouts . | . . . . . . Robots Hopped . | . . . . . . Cave-ins Triggered . | . . . . . . Exploration Rate (%) 72 | 4 88 98 67 98 78 Regions Visited 5 Branch Regions 3 Pre-discovered Areas 3 | . . 1 . 1 1 Known Exits Taken 3 | . 1 1 1 . . Unknown Exits Taken 2 | 1 . . . 1 . Scrap Searched 3 | . . 1 . 2 . Spaces Dug 26 | . 2 10 . . 14 Terrain Destroyed 58 | . 2 35 . . 21 Melee . | . . . . . . Projectile 2 | . 2 . . . . AOE 56 | . . 35 . . 21 Terrain Rammed . | . . . . . . Walls Destroyed . | . . . . . . Machines Disabled . | . . . . . . Actions | -11 -10 -10 -9 -9 -9 --------- Run | Scr Mat Min Mat Min Exi Total 4758 | 55 947 764 992 617 1383 Wait 662 | . 26 17 105 33 481 Move 3546 | 33 772 669 733 566 773 Hop . | . . . . . . Pick Up 80 | 6 31 6 17 3 17 Fast Attach 24 | 3 3 4 13 . 1 Attach 17 | 3 5 . 2 . 7 Detach 6 | . 3 . . . 3 Swap 48 | . 13 8 21 . 6 Drop 92 | . 20 11 34 4 23 Fire 277 | 10 72 49 67 11 68 Melee . | . . . . . . Ram . | . . . . . . Kick . | . . . . . . Crush 2 | . 2 . . . . Escape Stasis . | . . . . . . Rewire . | . . . . . . Trap 4 | . . . . . 4 Miscellaneous . | . . . . . . Route ------- -11/Scrapyard -10/Materials (discovered 4 exits: *Mat x2 / *Min x2) -10/Mines (discovered 2 exits: *Mat x2) -9/Materials (discovered 5 exits: *Mat x3 / *Min x2) -9/Mines (discovered 3 exits: *Mat x2 / *Exi) -9/Exiles (discovered 1 exit: [*Min]) History --------- Turn | Location | Event 27 | -11/Scrapyard | Discovered new exit (range 14) 78 | -11/Scrapyard | Entered Materials 316 | -10/Materials | Discovered new exit (range 16) 326 | -10/Materials | Build established: Mutant 837 | -10/Materials | Discovered new exit (range 15) 911 | -10/Materials | Discovered new exit (range 15) 1109 | -10/Materials | Discovered new exit (range 16) 1150 | -10/Materials | Identified exit to Materials 1250 | -10/Materials | Identified exit to Mines 1593 | -10/Materials | Entered Mines 1600 | -10/Mines | Received a Rocket Launcher from a helpful Derelict 1787 | -10/Mines | Discovered exit to Materials (range 15) 1843 | -10/Mines | Found a hidden stash of uninstalled traps 1870 | -10/Mines | Discovered exit to Materials (range 8) 2216 | -10/Mines | Assembled infested the area 2454 | -10/Mines | Met a Derelict testing a Signal Generator 2835 | -10/Mines | Entered Materials 2835 | -9/Materials | Evolved 2 slots: Utility x2 3716 | -9/Materials | Build established: Scavenger-Mutant 3784 | -9/Materials | Discovered new exit (range 5) 3956 | -9/Materials | Identified exit to Mines 3984 | -9/Materials | Central database locked down 4088 | -9/Materials | Repaired Hvy. Assault Rifle 4125 | -9/Materials | Repaired Hvy. Assault Rifle 4159 | -9/Materials | Repaired Imp. Ion Engine 4286 | -9/Materials | Discovered new exit (range 15) 4291 | -9/Materials | Identified exit to Materials 4349 | -9/Materials | Build established: Hauler-Mutant 4493 | -9/Materials | Entered Mines 4493 | -9/Mines | Accompanied by 1 ally 4767 | -9/Mines | Deemed a non-threat by the Exiles lab entrance 4767 | -9/Mines | Discovered new exit (range 5) 4809 | -9/Mines | A weapon hastily lodged in a ceiling crevice suddenly fell to the ground 4839 | -9/Mines | Learned 2 Materials zone layouts 4928 | -9/Mines | Found a damaged Exp. Sensor Array with a note attached 4932 | -9/Mines | Found Prototype Device 4955 | -9/Mines | Learned Materials stockpile data 4960 | -9/Mines | Discovered exit to Materials (range 7) 5035 | -9/Mines | Received a Mining Laser from a helpful Derelict 5095 | -9/Mines | Assisted by bots powering up and referring to "LRC-V3" 5183 | -9/Mines | Discovered exit to Materials (range 5) 5357 | -9/Mines | Found the Drone Emporium 5388 | -9/Mines | Found Prototype Device 5438 | -9/Mines | Escorted by a lone wolf Derelict 5458 | -9/Mines | Learned location of Storage (-7) 5498 | -9/Mines | Entered Exiles 5498 | -9/Exiles | Accompanied by 7 allies 5528 | -9/Exiles | Led the pair of lost Derelicts to a safe place 5540 | -9/Exiles | Met 8R-AWN 5568 | -9/Exiles | Met EX-HEX 5640 | -9/Exiles | Met EX-DEC 5668 | -9/Exiles | Learned location of Zion (-6) 5751 | -9/Exiles | Discovered new exit (range 10) 6137 | -9/Exiles | Visited The Gauntlet 6215 | -9/Exiles | Met EX-BIN 6239 | -9/Exiles | Aligned with FarCom system 6241 | -9/Exiles | Given EX-Vault access code 6279 | -9/Exiles | Opened EX-Vault 6291 | -9/Exiles | Found Flying Fortress v7 6300 | -9/Exiles | Found Potential Leg 6302 | -9/Exiles | Found Potential Leg 6338 | -9/Exiles | Warned to stay clear of 0b10 Research branches 6742 | -9/Exiles | Build established: Commander-Mutant 6987 | -9/Exiles | Attacked by the Exiles 7146 | -9/Exiles | Core integrity fell below 50% 7204 | -9/Exiles | Core integrity fell below 20% 7224 | -9/Exiles | Destroyed 8R-AWN 7239 | -9/Exiles | Lost 4 parts (1p2u1w) 7256 | -9/Exiles | Found Prototype Processor 7321 | -9/Exiles | Destroyed by DAS Turret with DAS Cannon Last Messages --------------- 07208_ Penetrated by HV Slug. 07220_ HV Slug penetrates Earth. 07220_ Penetrated by HV Slug. 07224_ 8R-AWN destroyed. 07227_ Acquired Hcp. Matter Pod. 07228_ Extracted 107 matter. 07230_ Acquired 101 matter. 07231_ Acquired 16 matter. 07235_ Acquired Aluminum Leg. 07237_ Acquired Heat Sink. 07240_ Dropped Heat Sink. 07240_ Dropped Aluminum Leg. 07246_ Acquired Prototype Device. 07246_ Identified Gravity Neutralizing Apparatus. 07253_ Acquired Adv. Treads. 07256_ Acquired Prototype Processor. 07260_ Acquired 20 matter. 07287_ The unstable cave ceiling collapses. 07288_ Med. Armor Plating destroyed. 07307_ System corrupted: Mni. Grenade Launcher targeting data glitched. Map ----- +----------------------------------------------------+ | ????????????????????????????????????#""""""?# | | ????????????????????????????????????##"###??# | | ????????????????????????????????????????????# | | ????????????????????????????????????????????# | | ???????????????????????????????????????????## | | ???????????#######?????????????????????????#" | | #####??????#!!! "#?????????????????????????#" | | #""##?????# "#?????????????????????????#" | | #?????# "#?????????????????????????#" | | ##???## ""#?????????????#???????????#" | | #####" ""#???????????? ""?????????#" | | ##" ""#????????????" """#???????## | | #"" ###????????????" ?????????# | | # #####?????????"" ?????????#" | | #### #?????????"" "#????????#" | | ???##" %*= ##???????? ""?????????#" | | ##### !! # # #?????????" "?????????##" | | !"""" = %%* % # ####??????# #????????##"" | | =#[# ;;##???### ###?######"" | | ! # ## "#####X# #"###""""""" | | ##### """"" " "" | | """"" #"#???# ; % "" """ " | | #####"" #???#### " " | | ???? # ??????### * % | | ???### ##???????## | | ?????## #????????# @ | | ??????# #????????### # | | ??????# #??????????### | | ?????? #????????????# """""" | | ??????# #????????????## ######""" | | ??????? ?????????????# ""##?????### | | ??????? ????????????##" """##????????? | | ??????? ????????????#"" """##?????????? | | ??????? ????????????#" ""#??????????? | | ??????? ????????????# ########??### | | ??????? ????????????#" ## ####"" | | ????????????????????#" """" | | ????????????????????# " t | | ?????????????????????#""" | | ?????????????????????## | | ??????????????????????#" " | | ??????????????????????#"""" ""## ## | | ??????????????????????#"" ""#### ## | | ??????????????????????#" """"##??# #? | | ??????????????????????#""" """#??## ## | | ??????????????????????## ""##??#! " | | ???????????????????????#"" """##???#" | | ???????????????????????##""" ##????#" | | ????????????????????????##"""" ##?????#!!""! | | ?????????????????????????### #??????###### | +----------------------------------------------------+ Best States ------------- Heat Dissipation 28 Energy Generation 14 Energy Capacity 265 Matter Stores 300 Matter Capacity 300 Sight Range 16 Terrain Scan Density 10 Armor Coverage 225 Evasion (%) 50 Targeting Accuracy 8 Armor Integrity Analysis 33 Recoil Reduction 2 Item Schematics ----------------- Imp. Flight Unit | -9/Materials | Scanalyzed Hcp. Storage Unit | -9/Materials | Hacked Med. Storage Unit | -9/Materials | Hacked Robot Schematics ------------------ None Fabricated ------------ Nothing Alien Tech Used ----------------- None Achievements -------------- None Challenges ------------ None Game ------ Seed BiomechanicalFlakBeam Manual? 0 Play Time 00:46:40 Cumulative 199.1 hours Start 2021.01.12 @ 21:53:48 End 2021.01.12 @ 22:40:19 Sessions 1 Manual Loads 0 Difficulty Rogue Special Mode None Game No. 185 Rogue 185 Adventurer 0 Explorer 0 Win Type - Total 0 Types 0/0/0/0/0/0/0/0/0 Lore% 59 Gallery% 68 Achievement% 54 Wizard Run 0 Options --------- ASCII 0 Keyboard 1 Movement Numpad Keybinds 0 Fullscreen 1 Font 12/Terminus Map View 83x54 Tactical HUD 1 Map Filters NONE Filters NONE Steam 1 RUN: 38eca0f9-fc58-4f46-9720-811cab6d698e